{"text_format":"1","workbook":"xlsx","n_sheets":2,"sheets":["Relevé d'heures","📖 Instructions"],"not_rendered":{"charts":0,"images":11,"macros":1,"external_links":0,"defined_names":1,"comments":0,"pivot_tables":0},"unopened":[],"bounds":{"document_bytes":16777216,"sheet_cells":100000,"rows_first":2000,"rows_last":500,"rows_between":2000,"halvings":0,"cell_chars":16384,"cell_head_chars":4096},"cells_cut":0,"cells_raw":0,"read":"whole","date_system":"1900"}

{"sheet":"Relevé d'heures","index":0,"n_rows":86,"n_cols":10,"rows_kept":86,"cut":false,"hidden":false,"merged":[[83,0,83,9],[72,7,73,8],[75,7,75,8],[72,9,73,9],[85,0,85,3],[0,2,0,9],[75,5,75,6],[82,0,82,9],[2,3,2,5],[2,7,2,9],[63,0,63,9],[81,0,81,9],[14,1,15,1],[8,2,8,9],[74,5,74,6],[68,1,68,2],[78,0,78,9],[66,3,66,5],[66,0,66,2],[74,7,74,8],[14,2,14,4],[80,0,80,9],[14,9,15,9],[6,3,6,5],[72,3,72,6],[5,5,5,9],[71,0,71,9],[73,5,73,6],[69,1,69,2],[75,0,75,2],[65,0,65,9],[79,0,79,9],[67,1,67,2],[49,0,49,9],[14,0,15,0],[14,8,15,8],[14,5,14,7],[47,0,47,7],[3,3,3,9],[74,0,74,2],[73,0,73,2],[52,0,52,9],[4,3,4,9]]}
[null,null,"Relevé d'heures 2026"]
[]
[null,null,"Nom",null,null,null,"Prénom"]
[null,null,"Grade"]
[null,null,"Adresse"]
[null,null,"CP",null,"Ville :"]
[null,null,"Mois","Janvier"]
[]
[null,null,"Toutes les heures travaillées au cours du mois doivent figurer ci-dessous."]
[]
[]
[]
[]
[]
["Date","Collectivité","Matin",null,null,"Après-Midi",null,null,"Total\njournée","Nombre de\nkilomètres aller\ndomicile/travail\n(si + de 20 km)"]
[null,null,"Arrivée","Départ","Total","Arrivée","Départ","Total"]
[1,null,null,null,{"$f":"IF(AND(C17<>\"\",D17<>\"\"),(D17-C17)*24,\"\")","v":""},null,null,{"$f":"IF(AND(F17<>\"\",G17<>\"\"),(G17-F17)*24,\"\")","v":""},{"$f":"IF(OR(E17<>\"\",H17<>\"\"),E17+H17,\"\")","v":""}]
[2,null,null,null,"",null,null,"",""]
[3,null,null,null,"",null,null,"",""]
[4,null,null,null,"",null,null,"",""]
[5,null,null,null,"",null,null,"",""]
[6,null,null,null,"",null,null,"",""]
[7,null,null,null,"",null,null,"",""]
[8,null,null,null,"",null,null,"",""]
[9,null,null,null,"",null,null,"",""]
[10,null,null,null,"",null,null,"",""]
[11,null,null,null,"",null,null,"",""]
[12,null,null,null,"",null,null,"",""]
[13,null,null,null,"",null,null,"",""]
[14,null,null,null,"",null,null,"",""]
[15,null,null,null,"",null,null,"",""]
[16,null,null,null,"",null,null,"",""]
[17,null,null,null,"",null,null,"",""]
[18,null,null,null,"",null,null,"",""]
[19,null,null,null,"",null,null,"",""]
[20,null,null,null,"",null,null,"",""]
[21,null,null,null,"",null,null,"",""]
[22,null,null,null,"",null,null,"",""]
[23,null,null,null,"",null,null,"",""]
[24,null,null,null,"",null,null,"",""]
[25,null,null,null,"",null,null,"",""]
[26,null,null,null,"",null,null,"",""]
[27,null,null,null,"",null,null,"",""]
[28,null,null,null,"",null,null,"",""]
[29]
[30]
[31]
["Total Général",null,null,null,null,null,null,null,{"$f":"SUM(I17:I47)","v":0},{"$f":"SUM(J17:J47)","v":0}]
[]
["Attention : CH = Congé Hebdomadaire | CA = Congé Annuel | SA = Sans Affectation | CM = Congé Maladie | CE = Congé Exceptionnel (motif à préciser)"]
[]
[]
["Référentiel mensuel - Heures correspondant à un temps complet (35h)"]
["2026","Janv.","Fév.","Mars","Avril","Mai","Juin","Juil.","Août","Sept."]
["Total du mois",147,140,154,147,119,154,154,147,154]
["Nbre de jours ouvrés",21,20,22,21,17,22,22,21,22]
["Nbre d'heures/jour",7,7,7,7,7,7,7,7,7]
[]
["2026","Oct.","Nov.","Déc."]
["Total du mois",154,140,154]
["Nbre de jours ouvrés",22,20,22]
["Nbre d'heures/jour",7,7,7]
[]
["Les heures effectuées au-delà du total mensuel sont des heures supplémentaires"]
[]
["Détail du nombre d'heures supplémentaires :"]
["Nombre d'heures supplémentaires",null,null,"Cadre réservé au CDG"]
["A récupérer",null,null,"Nombre","Taux","Montant"]
["A rémunérer"]
["TOTAL"]
[]
["Collectivité d'accueil"]
[null,null,null,"Nombre d'heures effectuées dans la collectivité",null,null,null,"Visa du responsable\nde la collectivité",null,"Date et visa du CDG"]
["Collectivité d'accueil",null,null,"Heures normales","Heures supplémentaires","Signature de\nl'agent"]
[]
[]
[]
[]
["PARTIE À COMPLÉTER OBLIGATOIREMENT"]
["À l'issue du contrat en cours :"]
["➢ votre contrat est prolongé :    ☐ oui    ☐ non        si oui, jusqu'à quelle date : _________________"]
["   si non, merci de répondre aux questions suivantes :"]
["➢ vous êtes nommé(e) stagiaire ?    ☐ oui    ☐ non        si oui, à quelle date : _________________"]
["➢ vous êtes recruté(e) en CDD ou en CDI au sein d'une collectivité territoriale ?    ☐ oui    ☐ non    si oui, à quelle date : _________________"]
[]
["Signature de l'agent :"]

{"sheet":"📖 Instructions","index":1,"n_rows":34,"n_cols":2,"rows_kept":34,"cut":false,"hidden":false,"merged":[[33,0,33,5],[29,0,29,5],[10,0,10,5],[23,1,23,5],[0,0,0,5],[24,0,24,5],[32,0,32,5],[13,0,13,5],[4,0,4,5],[22,0,22,5],[31,0,31,5],[7,0,7,5],[21,0,21,5],[16,0,16,5],[19,0,19,5],[28,0,28,5],[12,1,12,5],[9,1,9,5],[18,1,18,5],[30,0,30,5],[3,1,3,5],[15,0,15,5],[6,1,6,5],[17,0,17,5],[2,0,2,5]]}
["MODE D'EMPLOI - Relevé d'heures automatisé"]
[]
["FONCTIONNALITÉS AUTOMATIQUES :"]
["1.","CALCULS AUTOMATIQUES"]
["Les totaux par demi-journée et par jour se calculent automatiquement dès que vous saisissez les heures d'arrivée et de départ."]
[]
["2.","TOTAL GÉNÉRAL"]
["Le total général du mois se met à jour automatiquement."]
[]
["3.","FORMAT DES HEURES"]
["Saisissez les heures au format HH:MM (exemple : 08:30 ou 14:00)."]
[]
["4.","CODES ABSENCES"]
["Pour les absences, saisissez simplement le code dans la colonne \"Collectivité\" :\n   • CH = Congé Hebdomadaire\n   • CA = Congé Annuel\n   • SA = Sans Affectation\n   • CM = Congé Maladie\n   • CE = Congé Exceptionnel"]
[]
[]
["ASTUCE GAIN DE TEMPS :"]
["Si vous travaillez aux mêmes horaires tous les jours :"]
["5.","Méthode manuelle rapide"]
["• Remplissez le jour 1 complètement\n   • Sélectionnez la ligne 1 (cellules B12 à J12)\n   • Copiez (Ctrl+C)\n   • Sélectionnez les lignes 2 à 31\n   • Collez (Ctrl+V)"]
[]
[]
["POUR ACTIVER LES MACROS VBA (optionnel) :"]
["6.","Activation"]
["• Enregistrez ce fichier au format .xlsm (Excel avec macros)\n   • Allez dans Développeur > Visual Basic\n   • Insérez le code VBA fourni dans le document séparé\n   • Les boutons automatiques apparaîtront en haut de la feuille"]
[]
[]
[]
["PROTECTION DES DONNÉES PERSONNELLES (RGPD)"]
["✓ Ce fichier contient vos données personnelles"]
["✓ Ne le laissez pas sur un ordinateur partagé"]
["✓ Supprimez-le de votre ordinateur après envoi"]
["✓ Envoyez-le uniquement à votre responsable RH"]
["✓ En cas de perte, contactez immédiatement votre employeur"]